[Event "Titled Tuesday Blitz February 15 Late 2022"]
[White "Celestino, Rafael Teixeira"]
[Black "Hakemi, Arman"]
[WhiteFideId "2108925"]
[BlackFideId "22520805"]
[WhiteElo "2301"]
[BlackElo "2208"]
[Result "0-1"]
[Round "01"]
[TimeControl "180+1"]
[Date "2022.02.16"]
[WhiteClock "0:00:29"]
[BlackClock "0:01:23"]

1. e4 {[%clk 0:03:00]}  c5 {[%clk 0:02:55]} 2. Nf3 {[%clk 0:02:59]}  e6 {[%clk 0:02:55]} 3. d4 {[%clk 0:02:58]}  cxd4 {[%clk 0:02:56]} 4. Nxd4 {[%clk 0:02:59]}  Nc6 {[%clk 0:02:57]} 5. Nc3 {[%clk 0:02:59]}  Qc7 {[%clk 0:02:56]} 6. Be3 {[%clk 0:03:00]}  a6 {[%clk 0:02:57]} 7. Be2 {[%clk 0:03:00]}  Nf6 {[%clk 0:02:56]} 8. O-O {[%clk 0:03:00]}  Bb4 {[%clk 0:02:47]} 9. Bf3 {[%clk 0:03:00]}  O-O {[%clk 0:02:32]} 10. Qd3 {[%clk 0:02:59]}  Ne5 {[%clk 0:02:32]} 11. Qe2 {[%clk 0:02:58]}  Bxc3 {[%clk 0:02:32]} 12. bxc3 {[%clk 0:02:58]}  Qxc3 {[%clk 0:02:33]} 13. Rad1 {[%clk 0:02:54]}  b5 {[%clk 0:02:29]} 14. g3 {[%clk 0:02:43]}  Nxf3+ {[%clk 0:02:28]} 15. Nxf3 {[%clk 0:02:43]}  d5 {[%clk 0:02:12]} 16. Bd4 {[%clk 0:02:39]}  Qc4 {[%clk 0:02:13]} 17. Qe3 {[%clk 0:02:07]}  Nxe4 {[%clk 0:02:10]} 18. Ne5 {[%clk 0:02:02]}  Qc7 {[%clk 0:02:10]} 19. f3 {[%clk 0:01:53]}  Nd6 {[%clk 0:02:04]} 20. Ng4 {[%clk 0:01:21]}  Nf5 {[%clk 0:01:58]} 21. Qd3 {[%clk 0:01:20]}  Nxd4 {[%clk 0:01:49]} 22. Qxd4 {[%clk 0:01:21]}  Bb7 {[%clk 0:01:48]} 23. Rd2 {[%clk 0:01:13]}  Rac8 {[%clk 0:01:47]} 24. h4 {[%clk 0:01:00]}  Qc5 {[%clk 0:01:41]} 25. Qxc5 {[%clk 0:00:59]}  Rxc5 {[%clk 0:01:41]} 26. Ne5 {[%clk 0:00:59]}  Rfc8 {[%clk 0:01:41]} 27. Rff2 {[%clk 0:00:58]}  f6 {[%clk 0:01:40]} 28. Nd3 {[%clk 0:00:57]}  R5c7 {[%clk 0:01:39]} 29. Nf4 {[%clk 0:00:57]}  Kf7 {[%clk 0:01:40]} 30. Rfe2 {[%clk 0:00:55]}  Re7 {[%clk 0:01:39]} 31. h5 {[%clk 0:00:50]}  Rd8 {[%clk 0:01:38]} 32. Nd3 {[%clk 0:00:49]}  Rc7 {[%clk 0:01:36]} 33. f4 {[%clk 0:00:47]}  d4 {[%clk 0:01:36]} 34. Kf2 {[%clk 0:00:42]}  a5 {[%clk 0:01:34]} 35. g4 {[%clk 0:00:43]}  b4 {[%clk 0:01:33]} 36. Kg3 {[%clk 0:00:42]}  h6 {[%clk 0:01:28]} 37. Rd1 {[%clk 0:00:40]}  Ba6 {[%clk 0:01:28]} 38. Rde1 {[%clk 0:00:39]}  Rd6 {[%clk 0:01:25]} 39. Kf3 {[%clk 0:00:31]}  Rc3 {[%clk 0:01:22]} 40. Ke4 {[%clk 0:00:29]}  Bb7# {[%clk 0:01:23]} 0-1


[Site "https://www.chess.com"]

[Event "Titled Tuesday Blitz February 15 Late 2022"]
[White "Chernomordik, Pavel"]
[Black "Pichot, Alan"]
[WhiteFideId "2804530"]
[BlackFideId "110973"]
[WhiteElo "2463"]
[BlackElo "2844"]
[Result "0-1"]
[Round "01"]
[TimeControl "180+1"]
[Date "2022.02.16"]
[WhiteClock "0:00:01"]
[BlackClock "0:00:08"]

1. e4 {[%clk 0:02:59]}  c5 {[%clk 0:02:54]} 2. Nc3 {[%clk 0:02:58]}  Nc6 {[%clk 0:02:39]} 3. Bb5 {[%clk 0:02:57]}  Nd4 {[%clk 0:02:34]} 4. Bc4 {[%clk 0:02:55]}  e6 {[%clk 0:02:33]} 5. Nge2 {[%clk 0:02:52]}  a6 {[%clk 0:02:27]} 6. a4 {[%clk 0:02:49]}  Qc7 {[%clk 0:02:23]} 7. d3 {[%clk 0:02:46]}  Nf6 {[%clk 0:02:22]} 8. Be3 {[%clk 0:02:33]}  Nc6 {[%clk 0:02:14]} 9. f4 {[%clk 0:02:25]}  d6 {[%clk 0:02:10]} 10. Ng3 {[%clk 0:02:23]}  h5 {[%clk 0:02:01]} 11. h3 {[%clk 0:02:10]}  b6 {[%clk 0:01:52]} 12. Qf3 {[%clk 0:02:01]}  Bb7 {[%clk 0:01:48]} 13. Qf2 {[%clk 0:02:00]}  Nb4 {[%clk 0:01:43]} 14. Bb3 {[%clk 0:01:58]}  d5 {[%clk 0:01:36]} 15. exd5 {[%clk 0:01:27]}  exd5 {[%clk 0:01:33]} 16. d4 {[%clk 0:01:23]}  c4 {[%clk 0:01:26]} 17. Ba2 {[%clk 0:01:21]}  g6 {[%clk 0:01:05]} 18. O-O {[%clk 0:01:08]}  h4 {[%clk 0:01:04]} 19. Nh1 {[%clk 0:01:05]}  Bd6 {[%clk 0:01:02]} 20. Rae1 {[%clk 0:01:04]}  O-O-O {[%clk 0:01:00]} 21. Bb1 {[%clk 0:01:02]}  Rde8 {[%clk 0:00:59]} 22. Qd2 {[%clk 0:00:53]}  Nh5 {[%clk 0:00:54]} 23. Re2 {[%clk 0:00:38]}  f5 {[%clk 0:00:52]} 24. Nd1 {[%clk 0:00:36]}  Re4 {[%clk 0:00:39]} 25. c3 {[%clk 0:00:34]}  Nd3 {[%clk 0:00:40]} 26. Bxd3 {[%clk 0:00:34]}  cxd3 {[%clk 0:00:40]} 27. Qxd3 {[%clk 0:00:34]}  Rhe8 {[%clk 0:00:40]} 28. Ref2 {[%clk 0:00:26]}  Qc4 {[%clk 0:00:36]} 29. Qd2 {[%clk 0:00:20]}  a5 {[%clk 0:00:28]} 30. Rf3 {[%clk 0:00:20]}  Ba6 {[%clk 0:00:27]} 31. Re1 {[%clk 0:00:18]}  Nxf4 {[%clk 0:00:19]} 32. Nhf2 {[%clk 0:00:18]}  Ne2+ {[%clk 0:00:18]} 33. Rxe2 {[%clk 0:00:14]}  Qxe2 {[%clk 0:00:16]} 34. Nxe4 {[%clk 0:00:11]}  Rxe4 {[%clk 0:00:11]} 35. Rf2 {[%clk 0:00:10]}  Qxd2 {[%clk 0:00:08]} 36. Rxd2 {[%clk 0:00:08]}  Bg3 {[%clk 0:00:08]} 37. Bf2 {[%clk 0:00:04]}  f4 {[%clk 0:00:08]} 38. b3 {[%clk 0:00:01]}  Be2 {[%clk 0:00:08]} 0-1


[Site "https://www.chess.com"]

[Event "Titled Tuesday Blitz February 15 Late 2022"]
[White "Debray, Christopher"]
[Black "Djabri,Massinas"]
[WhiteFideId "630810"]
[BlackFideId "7905726"]
[WhiteElo "2369"]
[BlackElo "1941"]
[Result "1-0"]
[Round "01"]
[TimeControl "180+1"]
[Date "2022.02.16"]
[WhiteClock "0:00:27"]
[BlackClock "0:00:09"]

1. d4 {[%clk 0:02:59]}  Nf6 {[%clk 0:02:59]} 2. Bf4 {[%clk 0:03:00]}  d5 {[%clk 0:02:58]} 3. e3 {[%clk 0:02:59]}  c5 {[%clk 0:02:58]} 4. Nc3 {[%clk 0:02:58]}  e6 {[%clk 0:02:55]} 5. Nb5 {[%clk 0:02:57]}  Na6 {[%clk 0:02:53]} 6. a4 {[%clk 0:02:57]}  Be7 {[%clk 0:02:50]} 7. c3 {[%clk 0:02:57]}  O-O {[%clk 0:02:46]} 8. Nf3 {[%clk 0:02:58]}  Nh5 {[%clk 0:02:41]} 9. Bg3 {[%clk 0:02:56]}  Nxg3 {[%clk 0:02:36]} 10. hxg3 {[%clk 0:02:57]}  Nc7 {[%clk 0:02:32]} 11. Bd3 {[%clk 0:02:56]}  f5 {[%clk 0:02:21]} 12. Qe2 {[%clk 0:02:50]}  c4 {[%clk 0:02:20]} 13. Bc2 {[%clk 0:02:50]}  Nxb5 {[%clk 0:02:13]} 14. axb5 {[%clk 0:02:51]}  Bd7 {[%clk 0:02:13]} 15. Ba4 {[%clk 0:02:44]}  a6 {[%clk 0:02:02]} 16. bxa6 {[%clk 0:02:41]}  Rxa6 {[%clk 0:02:01]} 17. Qd1 {[%clk 0:02:29]}  Qa8 {[%clk 0:01:53]} 18. Ne5 {[%clk 0:02:08]}  Rxa4 {[%clk 0:01:36]} 19. Rb1 {[%clk 0:02:07]}  Be8 {[%clk 0:01:32]} 20. g4 {[%clk 0:01:58]}  Bd6 {[%clk 0:01:27]} 21. gxf5 {[%clk 0:01:51]}  Bxe5 {[%clk 0:01:26]} 22. dxe5 {[%clk 0:01:50]}  Rxf5 {[%clk 0:01:26]} 23. O-O {[%clk 0:01:44]}  Qb8 {[%clk 0:01:19]} 24. e4 {[%clk 0:01:39]}  Qxe5 {[%clk 0:01:18]} 25. exf5 {[%clk 0:01:36]}  Qxf5 {[%clk 0:01:15]} 26. Ra1 {[%clk 0:01:32]}  b5 {[%clk 0:01:07]} 27. Rxa4 {[%clk 0:01:31]}  bxa4 {[%clk 0:01:08]} 28. Re1 {[%clk 0:01:31]}  Bd7 {[%clk 0:01:02]} 29. Qd4 {[%clk 0:01:29]}  Qc2 {[%clk 0:00:58]} 30. Qb6 {[%clk 0:01:27]}  Kf7 {[%clk 0:00:46]} 31. Re3 {[%clk 0:01:26]}  Qd1+ {[%clk 0:00:43]} 32. Kh2 {[%clk 0:01:26]}  Qh5+ {[%clk 0:00:43]} 33. Rh3 {[%clk 0:01:24]}  Qe5+ {[%clk 0:00:44]} 34. g3 {[%clk 0:01:18]}  h6 {[%clk 0:00:37]} 35. Rh4 {[%clk 0:01:14]}  Ke7 {[%clk 0:00:30]} 36. Rf4 {[%clk 0:01:08]}  Qh5+ {[%clk 0:00:14]} 37. Kg2 {[%clk 0:01:07]}  e5 {[%clk 0:00:15]} 38. Qc5+ {[%clk 0:01:03]}  Ke6 {[%clk 0:00:16]} 39. Rf8 {[%clk 0:00:59]}  e4 {[%clk 0:00:16]} 40. Qb6+ {[%clk 0:00:47]}  Ke5 {[%clk 0:00:16]} 41. Qc7+ {[%clk 0:00:42]}  Ke6 {[%clk 0:00:15]} 42. Qf4 {[%clk 0:00:40]}  Ke7 {[%clk 0:00:14]} 43. Rb8 {[%clk 0:00:36]}  Bh3+ {[%clk 0:00:12]} 44. Kg1 {[%clk 0:00:32]}  Bd7 {[%clk 0:00:08]} 45. Qf8+ {[%clk 0:00:28]}  Ke6 {[%clk 0:00:09]} 46. Rb6+ {[%clk 0:00:28]}  Ke5 {[%clk 0:00:09]} 47. Qf4# {[%clk 0:00:27]} 1-0


[Site "https://www.chess.com"]

[Event "Titled Tuesday Blitz February 15 Late 2022"]
[White "Degardin, Sylvain"]
[Black "Demchenko, Anton"]
[WhiteFideId "20623070"]
[BlackFideId "4160258"]
[WhiteElo "2156"]
[BlackElo "2539"]
[Result "0-1"]
[Round "01"]
[TimeControl "180+1"]
[Date "2022.02.15"]
[WhiteClock "0:00:11"]
[BlackClock "0:00:35"]

1. d4 {[%clk 0:03:00]}  Nf6 {[%clk 0:02:59]} 2. c4 {[%clk 0:03:00]}  d6 {[%clk 0:03:00]} 3. Nf3 {[%clk 0:03:00]}  Nbd7 {[%clk 0:03:00]} 4. Nc3 {[%clk 0:02:58]}  e5 {[%clk 0:03:00]} 5. e4 {[%clk 0:02:58]}  Be7 {[%clk 0:03:00]} 6. Be2 {[%clk 0:02:56]}  O-O {[%clk 0:03:00]} 7. O-O {[%clk 0:02:56]}  c6 {[%clk 0:02:59]} 8. Re1 {[%clk 0:02:52]}  Qc7 {[%clk 0:02:59]} 9. Bf1 {[%clk 0:02:51]}  Re8 {[%clk 0:02:59]} 10. Rb1 {[%clk 0:02:43]}  a5 {[%clk 0:02:53]} 11. a3 {[%clk 0:02:42]}  Nf8 {[%clk 0:02:52]} 12. b4 {[%clk 0:02:41]}  axb4 {[%clk 0:02:53]} 13. axb4 {[%clk 0:02:41]}  exd4 {[%clk 0:02:43]} 14. Nxd4 {[%clk 0:02:40]}  Ng6 {[%clk 0:02:43]} 15. Qc2 {[%clk 0:02:21]}  Bf8 {[%clk 0:02:39]} 16. g3 {[%clk 0:02:15]}  h5 {[%clk 0:02:33]} 17. Bg5 {[%clk 0:02:06]}  Nh7 {[%clk 0:02:29]} 18. Be3 {[%clk 0:02:03]}  h4 {[%clk 0:02:29]} 19. Bg2 {[%clk 0:01:53]}  Ne5 {[%clk 0:02:30]} 20. Qe2 {[%clk 0:01:29]}  hxg3 {[%clk 0:02:24]} 21. hxg3 {[%clk 0:01:29]}  g6 {[%clk 0:02:03]} 22. Rec1 {[%clk 0:01:21]}  Ng4 {[%clk 0:01:58]} 23. Bf4 {[%clk 0:01:18]}  Bg7 {[%clk 0:01:50]} 24. Nb3 {[%clk 0:01:08]}  Be5 {[%clk 0:01:29]} 25. Bxe5 {[%clk 0:01:03]}  dxe5 {[%clk 0:01:30]} 26. f3 {[%clk 0:00:45]}  Ngf6 {[%clk 0:01:30]} 27. c5 {[%clk 0:00:37]}  Nh5 {[%clk 0:01:30]} 28. Qf2 {[%clk 0:00:35]}  Qe7 {[%clk 0:01:27]} 29. Nd2 {[%clk 0:00:33]}  Be6 {[%clk 0:01:27]} 30. Nf1 {[%clk 0:00:32]}  Ra3 {[%clk 0:01:24]} 31. Ra1 {[%clk 0:00:30]}  Qg5 {[%clk 0:01:15]} 32. Ne2 {[%clk 0:00:23]}  Rxa1 {[%clk 0:01:07]} 33. Rxa1 {[%clk 0:00:24]}  Bc4 {[%clk 0:01:07]} 34. Nc3 {[%clk 0:00:20]}  Rd8 {[%clk 0:00:57]} 35. Ne3 {[%clk 0:00:13]}  Be6 {[%clk 0:00:56]} 36. Ne2 {[%clk 0:00:13]}  Rd2 {[%clk 0:00:36]} 37. Qe1 {[%clk 0:00:12]}  Qxe3+ {[%clk 0:00:36]} 38. Kh2 {[%clk 0:00:11]}  Qxe2 {[%clk 0:00:35]} 0-1


[Site "https://www.chess.com"]

[Event "Titled Tuesday Blitz February 15 Late 2022"]
[White "Delaney, Killian"]
[Black "Jobava, Baadur"]
[WhiteFideId "2501570"]
[BlackFideId "13601520"]
[WhiteElo "2306"]
[BlackElo "2617"]
[Result "1/2-1/2"]
[Round "01"]
[TimeControl "180+1"]
[Date "2022.02.15"]
[WhiteClock "0:00:21"]
[BlackClock "0:00:25"]

1. e4 {[%clk 0:02:59]}  c6 {[%clk 0:03:00]} 2. d4 {[%clk 0:02:59]}  d5 {[%clk 0:03:00]} 3. exd5 {[%clk 0:02:59]}  cxd5 {[%clk 0:03:01]} 4. c4 {[%clk 0:02:59]}  e6 {[%clk 0:03:01]} 5. Nc3 {[%clk 0:03:00]}  Nf6 {[%clk 0:03:01]} 6. Nf3 {[%clk 0:03:00]}  Be7 {[%clk 0:03:02]} 7. Bd3 {[%clk 0:03:00]}  dxc4 {[%clk 0:03:02]} 8. Bxc4 {[%clk 0:03:01]}  Nc6 {[%clk 0:03:02]} 9. O-O {[%clk 0:03:01]}  O-O {[%clk 0:03:03]} 10. Re1 {[%clk 0:03:01]}  Re8 {[%clk 0:02:57]} 11. Bg5 {[%clk 0:02:58]}  h6 {[%clk 0:02:57]} 12. Be3 {[%clk 0:02:56]}  Bd6 {[%clk 0:02:52]} 13. Rc1 {[%clk 0:02:51]}  Ne7 {[%clk 0:02:51]} 14. Qd2 {[%clk 0:02:42]}  Nf5 {[%clk 0:02:49]} 15. Bf4 {[%clk 0:02:36]}  Bd7 {[%clk 0:02:43]} 16. d5 {[%clk 0:02:25]}  exd5 {[%clk 0:02:23]} 17. Nxd5 {[%clk 0:02:23]}  Rxe1+ {[%clk 0:02:21]} 18. Rxe1 {[%clk 0:02:23]}  Bc6 {[%clk 0:02:22]} 19. Nxf6+ {[%clk 0:01:59]}  Qxf6 {[%clk 0:02:23]} 20. Bxd6 {[%clk 0:01:57]}  Nxd6 {[%clk 0:02:23]} 21. Bd5 {[%clk 0:01:53]}  Bxd5 {[%clk 0:02:16]} 22. Qxd5 {[%clk 0:01:54]}  Rd8 {[%clk 0:02:17]} 23. Qb3 {[%clk 0:01:28]}  b5 {[%clk 0:02:03]} 24. Rd1 {[%clk 0:01:14]}  Nc4 {[%clk 0:02:00]} 25. Rxd8+ {[%clk 0:01:11]}  Qxd8 {[%clk 0:02:01]} 26. h3 {[%clk 0:01:07]}  Qd5 {[%clk 0:01:53]} 27. a4 {[%clk 0:01:04]}  a6 {[%clk 0:01:47]} 28. axb5 {[%clk 0:01:02]}  axb5 {[%clk 0:01:48]} 29. Qc3 {[%clk 0:00:54]}  Qd1+ {[%clk 0:01:45]} 30. Kh2 {[%clk 0:00:54]}  Qd6+ {[%clk 0:01:42]} 31. Kg1 {[%clk 0:00:53]}  Qd1+ {[%clk 0:01:28]} 32. Kh2 {[%clk 0:00:53]}  Qd5 {[%clk 0:01:29]} 33. Qd4 {[%clk 0:00:42]}  Qa8 {[%clk 0:01:12]} 34. b3 {[%clk 0:00:39]}  Na5 {[%clk 0:01:10]} 35. Qb6 {[%clk 0:00:36]}  Nxb3 {[%clk 0:00:55]} 36. Qxb5 {[%clk 0:00:35]}  Na5 {[%clk 0:00:49]} 37. Ne5 {[%clk 0:00:32]}  Qe4 {[%clk 0:00:24]} 38. Qxa5 {[%clk 0:00:26]}  Qf4+ {[%clk 0:00:24]} 39. Kg1 {[%clk 0:00:23]}  Qc1+ {[%clk 0:00:24]} 40. Kh2 {[%clk 0:00:23]}  Qf4+ {[%clk 0:00:25]} 41. Kg1 {[%clk 0:00:21]}  Qc1+ {[%clk 0:00:25]} 42. Kh2 {[%clk 0:00:21]}  Qf4+ {[%clk 0:00:25]} 1/2-1/2


[Site "https://www.chess.com"]

[Event "Titled Tuesday Blitz February 15 Late 2022"]
[White "Desideri, Ricardo Maruchi"]
[Black "Goltseva, Ekaterina"]
[WhiteFideId "2110440"]
[BlackFideId "24173770"]
[WhiteElo "1945"]
[BlackElo "2140"]
[Result "0-1"]
[Round "01"]
[TimeControl "180+1"]
[Date "2022.02.16"]
[WhiteClock "0:00:08"]
[BlackClock "0:01:54"]

1. e4 {[%clk 0:02:49]}  e5 {[%clk 0:02:58]} 2. Nf3 {[%clk 0:02:49]}  Nc6 {[%clk 0:02:58]} 3. d4 {[%clk 0:02:48]}  exd4 {[%clk 0:02:58]} 4. Nxd4 {[%clk 0:02:49]}  Bc5 {[%clk 0:02:58]} 5. Nb3 {[%clk 0:02:48]}  Bb6 {[%clk 0:02:58]} 6. Nc3 {[%clk 0:02:48]}  Nf6 {[%clk 0:02:59]} 7. Qe2 {[%clk 0:02:46]}  a5 {[%clk 0:02:59]} 8. a4 {[%clk 0:02:43]}  O-O {[%clk 0:02:57]} 9. Be3 {[%clk 0:02:44]}  Bxe3 {[%clk 0:02:53]} 10. Qxe3 {[%clk 0:02:40]}  Nb4 {[%clk 0:02:53]} 11. O-O-O {[%clk 0:02:37]}  d6 {[%clk 0:02:52]} 12. f3 {[%clk 0:02:35]}  Be6 {[%clk 0:02:52]} 13. Kb1 {[%clk 0:02:30]}  Re8 {[%clk 0:02:51]} 14. g4 {[%clk 0:02:25]}  Qe7 {[%clk 0:02:48]} 15. h4 {[%clk 0:02:19]}  Bxb3 {[%clk 0:02:46]} 16. cxb3 {[%clk 0:02:17]}  c6 {[%clk 0:02:44]} 17. g5 {[%clk 0:01:57]}  Nd7 {[%clk 0:02:43]} 18. Qd4 {[%clk 0:01:36]}  Nc5 {[%clk 0:02:38]} 19. Bc4 {[%clk 0:01:32]}  Rad8 {[%clk 0:02:38]} 20. Rhe1 {[%clk 0:01:19]}  d5 {[%clk 0:02:32]} 21. exd5 {[%clk 0:01:15]}  Qxe1 {[%clk 0:02:32]} 22. Rxe1 {[%clk 0:01:13]}  Rxe1+ {[%clk 0:02:32]} 23. Nd1 {[%clk 0:01:12]}  cxd5 {[%clk 0:02:27]} 24. Be2 {[%clk 0:01:01]}  Nxb3 {[%clk 0:02:22]} 25. Qe3 {[%clk 0:00:52]}  Rc8 {[%clk 0:02:05]} 26. Qxb3 {[%clk 0:00:51]}  Rxe2 {[%clk 0:02:05]} 27. Nc3 {[%clk 0:00:31]}  Re1+ {[%clk 0:02:02]} 28. Nd1 {[%clk 0:00:29]}  d4 {[%clk 0:01:55]} 29. Ka1 {[%clk 0:00:13]}  d3 {[%clk 0:01:54]} 30. h5 {[%clk 0:00:11]}  d2 {[%clk 0:01:54]} 31. g6 {[%clk 0:00:08]}  Rc1# {[%clk 0:01:54]} 0-1


[Site "https://www.chess.com"]

[Event "Titled Tuesday Blitz February 15 Late 2022"]
[White "Djordjevic, Vuk"]
[Black "Todorovic, Bojan"]
[WhiteFideId "902098"]
[BlackFideId "917087"]
[WhiteElo "2463"]
[BlackElo "2266"]
[Result "1-0"]
[Round "01"]
[TimeControl "180+1"]
[Date "2022.02.16"]
[WhiteClock "0:00:06"]
[BlackClock "0:00:02"]

1. d4 {[%clk 0:02:58]}  Nf6 {[%clk 0:02:58]} 2. Bg5 {[%clk 0:02:58]}  e6 {[%clk 0:02:57]} 3. e4 {[%clk 0:02:58]}  h6 {[%clk 0:02:56]} 4. Bxf6 {[%clk 0:02:59]}  Qxf6 {[%clk 0:02:55]} 5. c3 {[%clk 0:02:59]}  b6 {[%clk 0:02:53]} 6. Bd3 {[%clk 0:03:00]}  Bb7 {[%clk 0:02:53]} 7. Nd2 {[%clk 0:02:59]}  d6 {[%clk 0:02:50]} 8. g3 {[%clk 0:02:59]}  Nd7 {[%clk 0:02:45]} 9. f4 {[%clk 0:02:56]}  g5 {[%clk 0:02:42]} 10. Ne2 {[%clk 0:02:52]}  Bg7 {[%clk 0:02:28]} 11. O-O {[%clk 0:02:51]}  Qe7 {[%clk 0:02:27]} 12. a4 {[%clk 0:02:46]}  Nf6 {[%clk 0:02:13]} 13. a5 {[%clk 0:02:39]}  a6 {[%clk 0:02:00]} 14. Qc2 {[%clk 0:02:09]}  Ng4 {[%clk 0:01:59]} 15. Rf3 {[%clk 0:02:04]}  f5 {[%clk 0:01:52]} 16. Raf1 {[%clk 0:01:32]}  O-O {[%clk 0:01:49]} 17. h3 {[%clk 0:01:29]}  Nf6 {[%clk 0:01:47]} 18. Re3 {[%clk 0:01:26]}  fxe4 {[%clk 0:01:39]} 19. Nxe4 {[%clk 0:01:25]}  Nd5 {[%clk 0:01:37]} 20. Ref3 {[%clk 0:01:26]}  b5 {[%clk 0:01:31]} 21. fxg5 {[%clk 0:01:15]}  hxg5 {[%clk 0:01:27]} 22. Qd2 {[%clk 0:01:15]}  Bh6 {[%clk 0:01:14]} 23. h4 {[%clk 0:01:07]}  Rxf3 {[%clk 0:01:06]} 24. Rxf3 {[%clk 0:01:04]}  g4 {[%clk 0:01:04]} 25. Qxh6 {[%clk 0:00:58]}  gxf3 {[%clk 0:01:04]} 26. Ng5 {[%clk 0:00:30]}  Nf6 {[%clk 0:00:57]} 27. Nf4 {[%clk 0:00:29]}  Qg7 {[%clk 0:00:51]} 28. Qxg7+ {[%clk 0:00:25]}  Kxg7 {[%clk 0:00:50]} 29. Nfxe6+ {[%clk 0:00:24]}  Kh8 {[%clk 0:00:37]} 30. Nxc7 {[%clk 0:00:18]}  Rc8 {[%clk 0:00:26]} 31. Nce6 {[%clk 0:00:18]}  Bd5 {[%clk 0:00:21]} 32. Nf4 {[%clk 0:00:10]}  b4 {[%clk 0:00:16]} 33. Nxd5 {[%clk 0:00:03]}  Nxd5 {[%clk 0:00:16]} 34. c4 {[%clk 0:00:04]}  Ne3 {[%clk 0:00:12]} 35. b3 {[%clk 0:00:03]}  Ng4 {[%clk 0:00:10]} 36. Bf5 {[%clk 0:00:02]}  Re8 {[%clk 0:00:08]} 37. Bxg4 {[%clk 0:00:02]}  Re3 {[%clk 0:00:08]} 38. Kf2 {[%clk 0:00:03]}  Rxb3 {[%clk 0:00:08]} 39. Nxf3 {[%clk 0:00:03]}  Rb2+ {[%clk 0:00:07]} 40. Ke3 {[%clk 0:00:03]}  b3 {[%clk 0:00:07]} 41. Bf5 {[%clk 0:00:04]}  Rg2 {[%clk 0:00:06]} 42. Nd2 {[%clk 0:00:04]}  Rxg3+ {[%clk 0:00:05]} 43. Ke2 {[%clk 0:00:04]}  b2 {[%clk 0:00:04]} 44. Bd3 {[%clk 0:00:04]}  Rg2+ {[%clk 0:00:03]} 45. Kd1 {[%clk 0:00:05]}  Rg4 {[%clk 0:00:03]} 46. Kc2 {[%clk 0:00:05]}  Rxd4 {[%clk 0:00:03]} 47. Kc3 {[%clk 0:00:05]}  Rxh4 {[%clk 0:00:02]} 48. Kxb2 {[%clk 0:00:06]} 1-0


[Site "https://www.chess.com"]

[Event "Titled Tuesday Blitz February 15 Late 2022"]
[White "Domingo Nunez, Alejandro"]
[Black "Martirosyan, Haik M."]
[WhiteFideId "22245561"]
[BlackFideId "13306553"]
[WhiteElo "2215"]
[BlackElo "2735"]
[Result "0-1"]
[Round "01"]
[TimeControl "180+1"]
[Date "2022.02.15"]
[WhiteClock "0:00:39"]
[BlackClock "0:00:46"]

1. Nf3 {[%clk 0:02:59]}  e6 {[%clk 0:03:00]} 2. e4 {[%clk 0:02:56]}  d5 {[%clk 0:02:59]} 3. Nc3 {[%clk 0:02:56]}  Nf6 {[%clk 0:02:57]} 4. e5 {[%clk 0:02:56]}  Ne4 {[%clk 0:02:56]} 5. Ne2 {[%clk 0:02:56]}  Be7 {[%clk 0:02:54]} 6. h4 {[%clk 0:02:54]}  O-O {[%clk 0:02:39]} 7. d3 {[%clk 0:02:54]}  Nc5 {[%clk 0:02:39]} 8. Ng3 {[%clk 0:02:46]}  Ncd7 {[%clk 0:02:39]} 9. d4 {[%clk 0:02:43]}  c5 {[%clk 0:02:39]} 10. c3 {[%clk 0:02:42]}  Nc6 {[%clk 0:02:39]} 11. Bd3 {[%clk 0:02:41]}  f5 {[%clk 0:02:35]} 12. Bg5 {[%clk 0:02:29]}  cxd4 {[%clk 0:02:34]} 13. cxd4 {[%clk 0:02:25]}  Bb4+ {[%clk 0:02:32]} 14. Kf1 {[%clk 0:02:25]}  Be7 {[%clk 0:02:31]} 15. a3 {[%clk 0:02:24]}  h6 {[%clk 0:02:30]} 16. Bxe7 {[%clk 0:02:19]}  Qxe7 {[%clk 0:02:31]} 17. Ne2 {[%clk 0:02:19]}  Nb6 {[%clk 0:02:31]} 18. Nf4 {[%clk 0:02:16]}  Qf7 {[%clk 0:02:32]} 19. h5 {[%clk 0:02:14]}  Bd7 {[%clk 0:02:32]} 20. Rh3 {[%clk 0:02:10]}  Rfc8 {[%clk 0:02:32]} 21. Qd2 {[%clk 0:02:06]}  Ne7 {[%clk 0:02:30]} 22. b3 {[%clk 0:02:05]}  Rc6 {[%clk 0:02:27]} 23. Rg3 {[%clk 0:02:04]}  Rac8 {[%clk 0:02:26]} 24. Kg1 {[%clk 0:01:53]}  Be8 {[%clk 0:02:17]} 25. Nh4 {[%clk 0:01:47]}  Qf8 {[%clk 0:02:08]} 26. Kh2 {[%clk 0:01:18]}  Kh8 {[%clk 0:02:06]} 27. Ra2 {[%clk 0:01:18]}  Bf7 {[%clk 0:02:05]} 28. Bb5 {[%clk 0:01:16]}  R6c7 {[%clk 0:02:05]} 29. Qb4 {[%clk 0:01:14]}  Kh7 {[%clk 0:01:58]} 30. Qd6 {[%clk 0:01:14]}  Rc3 {[%clk 0:01:20]} 31. Nhg6 {[%clk 0:00:58]}  Bxg6 {[%clk 0:01:12]} 32. hxg6+ {[%clk 0:00:55]}  Kh8 {[%clk 0:01:12]} 33. Nxe6 {[%clk 0:00:54]}  Qg8 {[%clk 0:00:54]} 34. Rxc3 {[%clk 0:00:50]}  Rxc3 {[%clk 0:00:53]} 35. Qxe7 {[%clk 0:00:50]}  Nc8 {[%clk 0:00:48]} 36. Qxb7 {[%clk 0:00:43]}  Qxe6 {[%clk 0:00:47]} 37. Bd7 {[%clk 0:00:41]}  Qxg6 {[%clk 0:00:46]} 38. Bxc8 {[%clk 0:00:41]}  Qh5+ {[%clk 0:00:46]} 39. Kg1 {[%clk 0:00:39]}  Rc1# {[%clk 0:00:46]} 0-1


[Site "https://www.chess.com"]